Cogmind - Beta 13 @@@ ROGUE MODE // 2024.07.23 @ 21:07:20 Player: CONM Result: Destroyed by 1K-SHX(R) with Subdweller Laser Performance ------------- Evolutions (0) 0 Regions Visited (3) 600 Robots Destroyed (31) 155 Value Destroyed (699) 699 Prototype IDs (0) 0 Alien Tech Used (0) 0 Bonus (0) 0 TOTAL SCORE: 1454 Bonus ------- None Cogmind --------- Core Integrity 0/250 Matter 121/300 Energy 100/100 System Corruption 0% Temperature Cool (6) Movement Rolling (110) Ox2 Location -10/Subcaves Parts ------- > --- POWER (1) -------- (None) > --- PROPULSION (2) --- Wheel > --- UTILITY (2) ------ Large Storage Unit Propulsion Shielding > --- WEAPON (2) ------- (None) > --- INVENTORY (15) --- Ion Engine Light Ion Engine Light Treads Heat Sink Medium Storage Unit Visual Processing Unit Improved Signal Interpreter Improved Terrain Scanner Targeting Computer Actuator Array Actuator Array Datajack Peak State ------------ > --- POWER ------------ Ion Engine > --- PROPULSION ------- Light Treads Light Treads > --- UTILITY ---------- Large Storage Unit Sensor Array > --- WEAPON ----------- Heavy Battle Rifle Grenade Launcher > --- INVENTORY -------- Ion Engine Light Ion Engine Light Treads Wheel Heat Sink Medium Storage Unit Visual Processing Unit Improved Signal Interpreter Improved Terrain Scanner Targeting Computer Actuator Array Actuator Array Propulsion Shielding Tractor Beam Datajack [Rating: 12] Favorites ----------- Power Ion Engine Engine Ion Engine Propulsion Light Treads Treads Light Treads Wheel Wheel Utility Large Storage Unit Device Sensor Array Storage Large Storage Unit Protection Propulsion Shielding Weapon Light Cannon Energy Gun Small Laser Ballistic Gun Assault Rifle Ballistic Cannon Light Cannon Launcher Grenade Launcher Build | -11 -10 -10 -10 ------- Run | Yrd Mat Min Sub Slots Evolved . | . . . . Power . | . . . . Propulsion . | . . . . Utility . | . . . . Weapon . | . . . . Parts Attached 24 | 8 10 . 6 Power 4 | 2 1 . 1 Engine 4 | 2 1 . 1 Core . | . . . . Reactor . | . . . . Propulsion 7 | 2 3 . 2 Treads 6 | 2 3 . 1 Leg . | . . . . Wheel 1 | . . . 1 Hover . | . . . . Flight . | . . . . Utility 7 | 2 3 . 2 Device 4 | 1 2 . 1 Storage 2 | 1 1 . . Processor . | . . . . Hackware . | . . . . Protection 1 | . . . 1 Artifact . | . . . . Weapon 6 | 2 3 . 1 Energy Gun 1 | 1 . . . Energy Cannon . | . . . . Ballistic Gun 2 | 1 . . 1 Ballistic Cannon 2 | . 2 . . Launcher 1 | . 1 . . Special Weapon . | . . . . Impact Weapon . | . . . . Slashing Weapon . | . . . . Piercing Weapon . | . . . . Special Melee Weapon . | . . . . Unidentified Prototypes . | . . . . Parts Lost 10 | . 2 . 8 Power 1 | . . . 1 Propulsion 4 | . 1 . 3 Utility 2 | . . . 2 Weapon 3 | . 1 . 2 Highest Loss Streak 4 | . 2 . 4 To Critical Strikes 1 | . . . 1 Average Slot Usage (%) 94 | . 95 100 81 Engine 13 | . 14 14 12 Treads 26 | . 26 28 25 Device 13 | . 13 14 12 Storage 14 | . 14 14 14 Ballistic Gun 6 | . 9 . 3 Ballistic Cannon 11 | . 13 14 1 Launcher 5 | . 2 14 9 Naked Turns . | . . . . Heaviest Build 33 | 14 32 32 33 Greatest Support 40 | 40 40 40 40 Greatest Overweight (x) 9 | . 9 . 2 Average Overweight (x) . | . . . . Largest Inventory Capacity 15 | 8 15 15 15 Average Capacity 12 | 7 12 15 15 Most Carried 15 | 3 14 15 15 Average Carried 10 | 2 10 14 14 Final Capacity 15 | 8 15 15 15 Final Carried 15 | 3 14 15 12 Class Distribution -------------------- 100% | Mutant Dominant Class ---------------- Mutant | -10/Materials Mutant | -10/Mines Mutant | -10/Subcaves Resources | -11 -10 -10 -10 ----------- Run | Yrd Mat Min Sub Matter Collected 812 | 297 370 134 11 Remotely 1 | . . . 1 Salvage Created 944 | 47 636 212 49 Parts 60 | 6 39 11 4 Haulers Intercepted 2 | . 2 . . Recyclers Shooed . | . . . . Parts Field Recycled . | . . . . Retrieved Matter . | . . . . Parts Self-Destructed 11 | . . . 11 Prevented . | . . . . Kills | -11 -10 -10 -10 ------- Run | Yrd Mat Min Sub Combat Hostiles Destroyed 18 | . 13 2 3 Guns 3 | . 3 . . Cannons 11 | . 10 1 . AOE 4 | . . 1 3 Classes Destroyed 9 | 1 7 . 1 Builder 2 | . 1 1 . Tunneler 4 | 3 . 1 . Hauler 2 | . 2 . . Recycler 2 | . 1 1 . Operator 1 | . 1 . . Watcher 2 | . 2 . . Swarmer 3 | . 3 . . Grunt 12 | . 10 2 . Subdweller 3 | . . . 3 Best Kill Streak 3 | 2 3 3 2 Combat Bots Only 3 | . 3 2 2 Max Kills in Single Turn 2 | 1 2 2 1 Gunslinging . | . . . . Exploded 1 | . . 1 1 Melee . | . . . . Uniques/NPCs Destroyed . | . . . . Combat | -11 -10 -10 -10 -------- Run | Yrd Mat Min Sub Hostile Shots Fired 134 | . 61 9 64 Missed 36 | . 14 2 20 Damage Taken 1538 | . 523 104 911 Core 262 | . 84 . 178 Absorbed by Shields . | . . . . Redirected to Shielding 11 | . . . 11 Core Remaining (%) 100 | 100 . . . Volleys Fired 86 | 12 50 10 14 Largest 2 | 2 2 2 2 Hottest 65 | 60 55 65 63 Shots Fired 154 | 23 95 12 24 Gun 78 | 23 45 . 10 Cannon 60 | . 50 10 . Launcher 16 | . . 2 14 Special . | . . . . Kinetic 127 | 12 95 10 10 Thermal 11 | 11 . . . Explosive 16 | . . 2 14 Electromagnetic . | . . . . Robot Hit Streak 23 | 15 23 4 7 Robot Miss Streak 4 | 2 4 2 1 Penetration Max . | . . . . Secondary Targets . | . . . . Shots Hit Robots 94 | 18 59 5 12 Core Hits 43 | 3 29 6 5 Critical Kills . | . . . . Critical Parts Destroyed . | . . . . Critical Strikes 3 | . 3 . . Blast 3 | . 3 . . Melee Attacks . | . . . . Impact . | . . . . Slashing . | . . . . Piercing . | . . . . Sneak Attacks . | . . . . Combat Hostiles . | . . . . Follow-up Attacks . | . . . . Damage Inflicted 2048 | 218 907 215 708 Guns 688 | 218 358 . 112 Cannons 660 | . 549 111 . Explosions 700 | . . 104 596 Melee . | . . . . Ramming . | . . . . Kinetic 1246 | 116 907 111 112 Thermal 102 | 102 . . . Explosive 700 | . . 104 596 Electromagnetic . | . . . . Impact . | . . . . Slashing . | . . . . Piercing . | . . . . Highest Corruption . | . . . . Average Corruption . | . . . . Corruption Purged . | . . . . Corruption Blocked . | . . . . Overload Shots . | . . . . Overflow Damage 16 | . . . 16 Projectiles . | . . . . Explosions 16 | . . . 16 Melee . | . . . . Knockbacks 10 | . 9 1 . Impact . | . . . . Kinetic 9 | . 8 1 . Secondary 1 | . 1 . . Self-Inflicted Damage 3 | . . 3 . Shots 1 | . . 1 . Rammed . | . . . . Targets Rammed . | . . . . Kicked . | . . . . Crushed . | . . . . Highest Temperature 33 | . 30 33 . Average Temperature 11 | . 9 17 . Received Heat Transfer 558 | . 228 57 273 Siege Activations . | . . . . Robots Corrupted . | . . . . Combat Hostiles . | . . . . Parts Fried . | . . . . Impact Corruptions . | . . . . Robots Melted . | . . . . Combat Hostiles . | . . . . Parts Melted . | . . . . Heat Transferred 225 | 225 . . . Parts Sabotaged . | . . . . Parts Stolen . | . . . . Parts Stripped . | . . . . Power Chain Reactions . | . . . . Alert | -11 -10 -10 -10 ------- Run | Yrd Mat Min Sub Peak Influence 233 | 15 233 120 . Initial 43 | . 9 43 . Average 77 | 2 95 60 . Maximum Alert Level 1 | . 1 . . Low Security (%) 92 | 100 89 100 . Level 1 7 | . 10 . . Level 2 . | . . . . Level 3 . | . . . . Level 4 . | . . . . Level 5 . | . . . . High Security . | . . . . Max Security . | . . . . Squads Dispatched 4 | . 3 1 . Investigation 3 | . 2 1 . Extermination . | . . . . Reinforcement 1 | . 1 . . Assault . | . . . . Garrison . | . . . . Intercept . | . . . . Searches Triggered . | . . . . Construction Impeded . | . . . . Haulers Reinforced . | . . . . Active Scanning Responses . | . . . . Cargo Convoy Interrupts . | . . . . Stealth | -11 -10 -10 -10 --------- Run | Yrd Mat Min Sub Distress Signals 2 | . 2 . . Communications Jammed . | . . . . Distress Signals . | . . . . Times Spotted 34 | . 25 2 7 Peak Tracking Total 5 | . 5 2 4 Tactical Retreats 1 | . 1 . . Traps | -11 -10 -10 -10 ------- Run | Yrd Mat Min Sub Traps Triggered 4 | . 4 . . Indirectly . | . . . . Trap Hack Attempts . | . . . . Triggered . | . . . . Disarmed . | . . . . Reprogrammed . | . . . . Reused . | . . . . Traps Extracted . | . . . . Installed . | . . . . Triggered . | . . . . Machines | -11 -10 -10 -10 ---------- Run | Yrd Mat Min Sub Machines Disabled . | . . . . Max in Single Turn . | . . . . Machines Repaired . | . . . . Machines Dismantled . | . . . . Machines Sabotaged . | . . . . Overloaded Fab Kills . | . . . . Hacking | -11 -10 -10 -10 --------- Run | Yrd Mat Min Sub Machines Accessed 6 | . 5 1 . Terminals 3 | . 3 . . Fabricators . | . . . . Repair Stations . | . . . . Recycling Units 2 | . 2 . . Scanalyzers . | . . . . Garrison Access . | . . . . Total Hacks 13 | . 12 1 . Successful 5 | . 4 1 . Failed 8 | . 8 . . Catastrophic 3 | . 3 . . Database Lockouts . | . . . . Manual 8 | . 8 . . Terminals 8 | . 8 . . Fabricators . | . . . . Repair Stations . | . . . . Recycling Units 4 | . 4 . . Scanalyzers . | . . . . Garrison Access . | . . . . Terminal Hacks 1 | . . 1 . Open Door 1 | . . 1 . Fabricator Hacks . | . . . . Repair Station Hacks . | . . . . Recycling Unit Hacks 3 | . 3 . . Report Inventory 2 | . 2 . . Retrieve Components 1 | . 1 . . Scanalyzer . | . . . . Garrison Access Hacks . | . . . . Unauthorized Hacks 1 | . 1 . . Terminals 1 | . 1 . . Botnet 1 | . 1 . . Fabricators . | . . . . Repair Stations . | . . . . Recycling Units . | . . . . Scanalyzers . | . . . . Garrison Access . | . . . . Data Cores Recovered . | . . . . Used . | . . . . Hacking Detections 3 | . 3 . . Full Trace Events . | . . . . Feedback Events . | . . . . Feedback Blocked . | . . . . Robot Schematics Acquired . | . . . . Robots Built . | . . . . Authchips . | . . . . Time . | . . . . Total Robot Build Rating . | . . . . Part Schematics Acquired . | . . . . Parts Built . | . . . . Authchips . | . . . . Time . | . . . . Total Part Build Rating . | . . . . Parts Repaired . | . . . . Time . | . . . . Parts Recycled . | . . . . Recycled Matter . | . . . . Retrieved Matter . | . . . . Retrieved Components 2 | . 2 . . Parts Scanalyzed . | . . . . Part Schematics Acquired . | . . . . Parts Damaged . | . . . . Bothacking | -11 -10 -10 -10 ------------ Run | Yrd Mat Min Sub Used RIF Installer . | . . . . Robots Hacked . | . . . . Non-combat . | . . . . Combat . | . . . . Robot Hacks Applied . | . . . . Relay Couplers Released . | . . . . Fabnet Peak Effective % . | . . . . Robots Rewired . | . . . . Allies Hacked . | . . . . Hacks Repelled . | . . . . Allies | -11 -10 -10 -10 -------- Run | Yrd Mat Min Sub Total Allies . | . . . . Largest Group . | . . . . Highest-Rated Group . | . . . . Highest-Rated Ally . | . . . . Total Orders . | . . . . Ally Attacks . | . . . . Total Damage . | . . . . Kills . | . . . . Allies Corrupted . | . . . . Allies Melted . | . . . . Intel | -11 -10 -10 -10 ------- Run | Yrd Mat Min Sub Robot Analysis Total . | . . . . Derelict Logs Recovered . | . . . . Drone Launches . | . . . . Drone Recoveries . | . . . . Exploration | -11 -10 -10 -10 ------------- Run | Yrd Mat Min Sub Turns Passed 2654 | 248 1517 511 378 Spaces Moved 1330 | 128 781 217 204 Core 7 | 4 3 . . Treads 1316 | 124 778 217 197 Legs . | . . . . Wheels 7 | . . . 7 Hover . | . . . . Flight . | . . . . Fastest Speed 50 | 50 160 160 110 Average Speed 164 | 156 167 160 162 Slowest Speed 500 | 160 500 160 260 Overloaded Moves . | . . . . Propulsion Burnouts . | . . . . Robots Hopped . | . . . . Cave-ins Triggered . | . . . . Exploration Rate (%) 44 | 6 94 62 17 Regions Visited 3 Branch Regions 2 Pre-discovered Areas . | . . . . Known Exits Taken . | . . . . Unknown Exits Taken 3 | 1 1 1 . Scrap Searched 1 | . . . 1 Spaces Dug . | . . . . Terrain Destroyed 63 | . . 22 41 Melee . | . . . . Projectile . | . . . . AOE 63 | . . 22 41 Terrain Rammed . | . . . . Walls Destroyed . | . . . . Machines Disabled . | . . . . Actions | -11 -10 -10 -10 --------- Run | Yrd Mat Min Sub Total 1635 | 149 890 371 225 Wait 174 | . 34 140 . Move 1327 | 127 780 216 204 Hop . | . . . . Pick Up 17 | 2 12 3 . Fast Attach 16 | 7 7 . 2 Attach 3 | . . . 3 Detach . | . . . . Swap 5 | 1 3 . 1 Drop 7 | . 4 2 1 Fire 86 | 12 50 10 14 Melee . | . . . . Ram . | . . . . Kick . | . . . . Crush . | . . . . Escape Stasis . | . . . . Rewire . | . . . . Trap . | . . . . Miscellaneous . | . . . . Route ------- -11/Scrapyard -10/Materials (discovered 4 exits: [*Mat x3] / *Min) -10/Mines -10/Subcaves History --------- Turn | Location | Event 14 | -11/Scrapyard | Discovered new exit (range 15) 249 | -11/Scrapyard | Entered Materials 313 | -10/Materials | Build established: Mutant 767 | -10/Materials | Discovered new exit (range 8) 1101 | -10/Materials | Discovered new exit (range 16) 1550 | -10/Materials | Discovered new exit (range 4) 1657 | -10/Materials | Discovered new exit (range 15) 1766 | -10/Materials | Entered Mines 2221 | -10/Mines | Met a Derelict shopkeep closing up shop 2265 | -10/Mines | Discovered new exit (range 5) 2277 | -10/Mines | Entered Subcaves 2381 | -10/Subcaves | A swath of the cavern ceiling suddenly collapsed 2535 | -10/Subcaves | Shifting Twisted Machinery released Battle Rifle 2551 | -10/Subcaves | Core integrity fell below 50% 2639 | -10/Subcaves | Core integrity fell below 20% 2655 | -10/Subcaves | Destroyed by 1K-SHX(R) with Subdweller Laser Last Messages --------------- A swath of the cavern ceiling suddenly collapses. 02382_ Subatomizers dissect the Disposable Heat Sink, destroying it. 02382_ The unstable cave ceiling collapses. 02389_ Destroyed Sub. Monowheel. 02391_ Critical hit (Destroy). 02391_ Lgt. Treads destroyed. 02395_ Hvy. Battle Rifle destroyed. 02401_ 3Z-HR9(R) destroyed. 02409_ Acquired 1 matter. 02420_ The unstable cave ceiling collapses. 02422_ Acquired Spk. Treads. 02433_ The unstable cave ceiling collapses. Battle Rifle falls loose from the Twisted Machinery. 02535_ Grenade Launcher destroyed. QN-CUS(R) emerges from concealment. 02616_ Ion Engine destroyed. 02626_ Q7-H0T(R) affixes Scrap Shield Fragment to Scrap Shield. 02630_ Lgt. Treads destroyed. 02634_ Tractor Beam destroyed. 02645_ Spk. Treads destroyed. Map ----- +----------------------------------------------------+ | ? #?????????????????????????????????????????? | | # #?????????????????????????????????????????? | | #??????????????????????????????????????????????? | | #???????????????????????????????????????????????? | | #???????????????????????????????????????????????? | | ##??????????????????????????????????????????????? | | ##############?????????????????????????????????? | | """"????????????????????????????????? | | """" ????????????????????????????????? | | ## """" ?????????????????????????????????? | | ### "##"" ?????????????????????????????????? | | "### "##?????????????????????????????????????? | | " #?###??????????????????????????????????????? | | ###""#??????????????????????????????????????????? | | ##?###??????????????????????????????????????????? | | #??????????????????????????????????????????????? | | #??????????????????????????????????????????????? | | ##????????#?????????????????????????????????????? | | ##??? ??# ????????????????????????????????????? | | ##?? """""????????????????????????????????????? | | #??#"" ?????????????????????????????????????? | | ##?##"" #?????????#####???????????????????????? | | ###??""""??????????#% #??###??????????????????? | | #?## ##????##?#?# #?# ???????????????????? | | ###### #?? ##"# ?# ## #????????????????????? | | # ## ###??""" ### @ #?????????????????????? | | ### ## #???#"" ## ##?????????????????????? | | # #??### ## ###????????????????????? | | # ##### R # #??????????????????? | | " ## # #???????????????????? | | # ###???????????????????? | | # # ##?????????????????????? | | ###### #??????????????????????? | | ##????## # ##??????????????????????? | | # #??????#### ####???????????????????????? | | # #???????## #??????????????????????????? | | #"" #????????#####??????????????????????????? | | "" ##???????????????????????????????????????? | | ###????????????????????????????????????????? | | #### #??????????????????????????????????????????? | | ???####??????????????????????????????????????????? | | ?????????????????????????????????????????????????? | | ?????????????????????????????????????????????????? | | ?????????????????????????????????????????????????? | | ?????????????????????????????????????????????????? | | ?????????????????????????????????????????????????? | | ?????????????????????????????????????????????????? | | ?????????????????????????????????????????????????? | | ?????????????????????????????????????????????????? | | ?????????????????????????????????????????????????? | +----------------------------------------------------+ Best States ------------- Heat Dissipation 25 Energy Generation 10 Energy Capacity 250 Matter Stores 300 Matter Capacity 300 Sight Range 16 Robot Scan Range 14 Terrain Scan Density 10 Propulsion Shielding 33 Evasion (%) 40 Recoil Reduction 2 Item Schematics ----------------- None Robot Schematics ------------------ None Fabricated ------------ Nothing Alien Tech Used ----------------- None Achievements -------------- None Challenges ------------ None Game ------ Seed TacticalMatterStick Manual? 0 Play Time 00:16:48 Cumulative 50.1 hours Start 2024.07.23 @ 19:59:13 End 2024.07.23 @ 21:07:20 Sessions 3 Manual Loads 0 Difficulty Rogue Special Mode None Game No. 73 Rogue 73 Adventurer 0 Explorer 0 Win Type - Total 0 Types 0/0/0/0/0/0/0/0/0 Lore% 27 Gallery% 31 Achievement% 33 Wizard Run 0 Options --------- Layout 0 ASCII 0 Keyboard 0 Movement Arrows Keybinds 0 Fullscreen 2 Font 18/SmallcapsGlow Map View 76x50 Zoom Use 0% Tactical HUD 1 Map Filters NONE Filters NONE Steam 1 RUN: 52be841d-8d08-457b-8558-3a7cba4be1c4